[Event "24th Hoogeschool Zeeland 2022"]
[Site "Vlissingen"]
[Date "2022.08.07"]
[Round "3.12"]
[White "Jeanne, Mickael"]
[Black "Van Delft, Merijn"]
[Result "1/2-1/2"]
[ECO "E94"]
[WhiteElo "2145"]
[BlackElo "2383"]
[Annotator "TA"]
[PlyCount "158"]
[EventDate "2022.08.05"]
[EventType "swiss"]
[EventCountry "NED"]
[SourceTitle "playchess.com"]
[Source "ChessBase"]
[SourceQuality "1"]
[TimeControl "40/5400+30:1800+30"]

{[%evp 15,158,31,36,27,36,39,40,9,45,23,27,30,38,41,56,52,75,32,50,0,29,0,0,-31,-26,-29,-32,-48,-53,-55,-53,-76,-53,-82,-57,-115,-121,-114,-104,-110,-100,-136,-53,-52,-46,-58,-9,-9,-9,-70,-50,-55,-48,-55,-55,-63,-57,-62,-50,-64,-74,-64,-84,-90,-72,-100,-100,-98,-90,-90,-90,-90,-90,-90,-90,-90,-90,-90,-90,-264,-90,-90,-90,-90,-90,-90,-90,-90,-90,-246,-90,-286,-90,-90,-90,-90,-90,-90,-90,-90,0,-278,0,-322,-157,-1012,-1018,-1012,-1011,-972,-826,-940,-310,-328,0,-328,-331,-331,-331,-331,-310,-322,-322,-322,0,-48,-48,-48,-46,-46,-46,-46,0,-46,-46,-46,-46,-46,0,-46,0,-46,-46,-46,0]} 1. c4 {[%emt 0:00:12]} Nf6 {[%emt 0:00:12]} 2. Nc3 {[%emt 0:00:09]} g6 {[%emt 0:00:08]} 3. e4 {[%emt 0:00:16]} d6 {[%emt 0:00:08]} 4. d4 {[%emt 0:00:13]} Bg7 {[%emt 0:00:13]} 5. Nf3 {[%emt 0:00:51]} O-O {[%emt 0:00:16]} 6. Be2 {[%emt 0:00:03]} e5 {[%emt 0:00:10]} 7. O-O {[%emt 0:00:07]} Bg4 {[%emt 0:00:22]} 8. d5 {[%emt 0:08:40]} a5 {[%emt 0:00:45]} 9. Be3 {[%emt 0:01:20] E94: King's Indian: Classical: 6 Be2 e5 7 0-0: Various Black 7th moves.} Na6 {[%emt 0:00:28]} 10. Nd2 {[%emt 0:02:19]} Bd7 {[%emt 0:00:20]} 11. b3 {[%emt 0:04:59] White is slightly better.} h5 {[%emt 0:01:45]} 12. h3 {[%emt 0:14:10]} Nh7 {[%emt 0:02:33] [#]} 13. Rc1 $146 {[%emt 0:04:28]} ({Predecessor:} 13. Qc1 Qh4 14. Nf3 Qe7 15. Ng5 Nxg5 16. Bxg5 f6 17. Be3 Kh7 18. a3 f5 19. f3 {½-½ (61) Gurevich,D (2399)-Ivanisevic,I (2606) Chess.com INT 2021}) 13... Bf6 {[%emt 0:08:24]} 14. Nf3 {[%emt 0:06:33]} Kh8 {[%emt 0:04:41]} 15. Qd2 {[%emt 0:02:39]} Rg8 {[%emt 0:00:42]} 16. Nh2 {[%emt 0:04:22] White is more active.} Bg5 {[%emt 0:02:41]} 17. Kh1 {[%emt 0:08:52]} ({White should play} 17. f4 $14 exf4 18. Bxf4) 17... f6 {[%emt 0:11:38][%cal Bf7f6,Bf6g5,Bg5f4][%mdl 32]} 18. Bxg5 {[%emt 0:05:58]} fxg5 {[%emt 0:05:05]} 19. Qe3 {[%emt 0:03:10]} Qf6 {[%emt 0:02:08]} 20. f3 {[%emt 0:02:49]} Qf4 {[%emt 0:02:33]} (20... Nc5 {with more complications.} 21. Qf2 Qf4 22. Kg1 Kg7) 21. Qxf4 {[%emt 0:02:47]} gxf4 {[%emt 0:00:12]} 22. Kg1 {[%emt 0:00:56]} g5 {[%emt 0:01:21]} 23. Kf2 {[%emt 0:00:29]} Nf6 {[%emt 0:00:24][%cal Oa5a4]} (23... a4 $5) 24. Rh1 {[%emt 0:01:18]} Kg7 {[%emt 0:00:34][%cal Oa5a4]} 25. Nb5 {[%emt 0:08:26]} (25. Nf1 $15) 25... g4 {[%emt 0:06:32]} 26. hxg4 {[%emt 0:00:27]} hxg4 {[%emt 0:00:57]} 27. Nf1 {[%emt 0:00:06]} g3+ {[%emt 0:06:03]} (27... a4 {feels hotter.} 28. Nd2 axb3 29. axb3 Nb4) 28. Kg1 {[%emt 0:00:38]} Kf7 {[%emt 0:05:37]} (28... a4 $1 $17 {aiming for ...axb3.} 29. Nd2 axb3 30. Nxb3 b6) 29. Nd2 {[%emt 0:00:48]} Ke7 {[%emt 0:01:21]} 30. Rh6 {[%emt 0:00:49]} Rh8 {[%emt 0:01:19]} (30... Rgc8 $15 {is superior.}) 31. Rxh8 $1 $11 {[%emt 0:00:13]} Rxh8 {[%emt 0:00:14]} 32. Nb1 {[%emt 0:00:55]} (32. c5 $11) 32... c6 {[%emt 0:01:11]} 33. N5c3 {[%emt 0:01:16]} Nc5 {[%emt 0:00:53]} 34. Rd1 {[%emt 0:01:09]} Ra8 {[%emt 0:02:17]} (34... Rh2 {is interesting.} 35. Na3 Na6 36. Nc2 Rh8) 35. Na3 {[%emt 0:03:05]} Ne8 {[%emt 0:03:09]} 36. Nc2 {[%emt 0:03:46]} Nc7 {[%emt 0:00:33]} 37. Ne1 {[%emt 0:01:15]} cxd5 {[%emt 0:08:31]} 38. Nxd5+ {[%emt 0:00:44]} Nxd5 {[%emt 0:00:12]} 39. cxd5 {[%emt 0:02:07]} b5 {[%emt 0:02:48][%cal Bb7b5,Bb5b4][%mdl 32]} 40. Nd3 {[%emt 0:02:10]} Nxd3 {[%emt 0:07:21]} 41. Bxd3 $17 {[%emt 0:30:09][%mdl 4096] Endgame KRB-KRB} Rc8 {[%emt 0:30:31]} 42. Kf1 {[%emt 0:00:26]} b4 {[%emt 0:03:59]} 43. Ke2 {[%emt 0:04:11]} Rh8 {[%emt 0:01:27] Against Rh1} 44. Rg1 {[%emt 0:01:09]} Kd8 {[%emt 0:01:07]} 45. Kd2 {[%emt 0:00:47]} Kc7 {[%emt 0:03:02]} 46. Be2 {[%emt 0:00:00]} Kb6 {[%emt 0:00:00]} 47. Bd3 $2 {[%emt 0:00:00]} (47. Rc1 $17) 47... Rh2 $2 {[%emt 0:00:00]} (47... a4 $1 $19 {and Black stays clearly on top. Hoping for ...axb3.} 48. Rd1 axb3 49. axb3 Rc8) 48. Be2 {[%emt 0:00:00]} Kb7 {[%emt 0:00:00]} 49. Kc2 {[%emt 0:00:00]} Ka7 {[%emt 0:00:00]} 50. Kd2 {[%emt 0:00:00]} Kb6 {[%emt 0:00:00]} 51. Kd1 {[%emt 0:00:00]} a4 {[%emt 0:00:00] White must now prevent ...Rh8.} 52. Kd2 $2 {[%emt 0:00:00]} (52. Kc2 $17) 52... Ka5 $2 {[%emt 0:00:00]} (52... Rh8 $1 $19 53. Kc2 a3) 53. Bd3 $2 {[%emt 0:00:00]} (53. Kd3 $17) 53... Bh3 $2 {[%emt 0:00:00]} (53... Rh8 $1 $19 {has better winning chances. Threatens to win with ...Kb6.} 54. Be2 Rh2) 54. Bf1 {[%emt 0:00:00] [#]} Bg4 $1 {[%emt 0:00:00]} 55. Be2 {[%emt 0:00:00]} ({Not} 55. fxg4 $2 f3 56. Be2 Rxg2 $19) 55... Bh5 {[%emt 0:00:00]} 56. Kd3 {[%emt 0:00:00]} Be8 {[%emt 0:00:00]} 57. Kd2 {[%emt 0:00:00]} Bd7 $2 {[%emt 0:00:00]} (57... Kb6 $17) 58. Bd3 $1 $19 {[%emt 0:00:00]} Kb6 {[%emt 0:00:00]} 59. Be2 $1 {[%emt 0:00:00]} Rh8 $1 {[%emt 0:00:10]} 60. Bd3 $2 {[%emt 0:00:00]} (60. Kc2 $17) 60... axb3 {[%emt 0:02:30]} 61. axb3 {[%emt 0:00:00]} Ra8 {[%emt 0:00:14]} 62. Rc1 {[%emt 0:00:00]} Ra3 {[%emt 0:01:05]} 63. Bc4 {[%emt 0:00:00]} Ra2+ $2 {[%emt 0:00:52]} (63... Bb5 64. Rc2 Bxc4 65. Rxc4 Kb5) 64. Rc2 {[%emt 0:00:00]} Ra3 $2 {[%emt 0:02:50]} (64... Ra5 $19 65. Rc1 Ra3) 65. Kc1 $2 {[%emt 0:05:10][%mdl 8192]} (65. Rc1 $1 $11 {and White has nothing to worry.}) 65... Ra1+ $1 {[%emt 0:00:49]} 66. Kb2 {[%emt 0:00:04]} Rg1 $1 {[%emt 0:00:26]} 67. Bd3 {[%emt 0:00:02]} Rd1 {[%emt 0:04:44]} 68. Be2 {[%emt 0:00:23]} Re1 $1 {[%emt 0:00:22]} 69. Bd3 {[%emt 0:00:07] [#]} Rd1 $2 {[%emt 0:00:25]} (69... Rg1 $1 $19 {[%cal Od7h3] And now ...Bh3! would win.} 70. Rd2 {[#]} Bh3 $1 71. gxh3 g2) 70. Be2 $15 {[%emt 0:00:03]} Rh1 {[%emt 0:00:13]} 71. Rc1 $1 {[%emt 0:03:04] Against Rg1} Rh2 {[%emt 0:00:30]} 72. Rg1 $1 {[%emt 0:00:28]} Bh3 {[%emt 0:00:39]} 73. Bf1 {[%emt 0:00:16]} Bd7 {[%emt 0:00:43]} 74. Be2 $1 {[%emt 0:00:23]} Kc5 {[%emt 0:00:15]} 75. Kc2 {[%emt 0:00:14]} Rh8 {[%emt 0:00:16]} 76. Ra1 {[%emt 0:00:38] Prevents Ra8.} Rh2 {[%emt 0:00:59]} 77. Rg1 {[%emt 0:00:01]} Kb6 {[%emt 0:00:34]} 78. Kb2 $1 {[%emt 0:00:08]} Rh8 {[%emt 0:00:35]} 79. Rc1 {[%emt 0:00:20]} Rh2 {[%emt 0:00:27] Whites escaped into a draw.  Weighted Error Value: White=0.34/Black=0.24 (precise)} (79... Rh5 $15) 1/2-1/2

[Event "24th Hoogeschool Zeeland 2022"]
[Site "Vlissingen"]
[Date "2022.08.07"]
[Round "3.13"]
[White "Pham, Khoi"]
[Black "Tiggelman, Rene"]
[Result "1-0"]
[ECO "B12"]
[WhiteElo "2317"]
[BlackElo "2165"]
[Annotator "RC"]
[PlyCount "83"]
[EventDate "2022.08.05"]
[EventType "swiss"]
[EventCountry "NED"]
[SourceTitle "playchess.com"]
[Source "ChessBase"]
[SourceQuality "1"]
[TimeControl "40/5400+30:1800+30"]

1. e4 {[%emt 0:00:13]} c6 {[%emt 0:02:22]} 2. d4 {[%emt 0:00:30]} d5 {[%emt 0:00:08]} 3. e5 {[%emt 0:00:03]} c5 {[%emt 0:00:15]} 4. Nf3 {[%emt 0:00:20]} Nc6 {[%emt 0:00:31]} 5. dxc5 {[%emt 0:00:15]} Bg4 {[%emt 0:04:09]} 6. c3 {[%emt 0:00:16]} e6 {[%emt 0:01:37]} 7. Be3 {[%emt 0:00:31]} Nge7 {[%emt 0:17:51]} 8. Nbd2 {[%emt 0:01:50]} Nf5 {[%emt 0:01:55]} 9. Bd4 {[%emt 0:01:57]} Nfxd4 {[%emt 0:05:36]} 10. cxd4 {[%emt 0:00:05]} Qa5 {[%emt 0:00:13]} 11. Qb3 {[%emt 0:10:57]} Be7 {[%emt 0:17:12]} 12. Qxb7 {[%emt 0:07:24]} O-O {[%emt 0:00:08]} 13. Qxc6 {[%emt 0:16:01]} Bxf3 {[%emt 0:01:16]} 14. Qb5 {[%emt 0:13:48]} Qxb5 {[%emt 0:00:51]} 15. Bxb5 {[%emt 0:00:06]} Bxg2 {[%emt 0:01:07]} 16. Rg1 {[%emt 0:00:04]} Be4 {[%emt 0:05:03]} 17. Nxe4 {[%emt 0:02:51]} dxe4 {[%emt 0:00:08]} 18. Bd7 {[%emt 0:02:33]} Rfd8 {[%emt 0:06:10]} 19. c6 {[%emt 0:00:19]} Bb4+ {[%emt 0:02:55]} 20. Ke2 {[%emt 0:00:19]} Ba5 {[%emt 0:00:04]} 21. Rac1 {[%emt 0:01:54]} Bc7 {[%emt 0:00:12]} 22. Ke3 {[%emt 0:01:27]} Rdb8 {[%emt 0:00:53]} 23. b3 {[%emt 0:00:21]} a5 {[%emt 0:00:36]} 24. Kxe4 {[%emt 0:03:05]} Kf8 {[%emt 0:01:33]} 25. Rc4 {[%emt 0:06:59]} g6 {[%emt 0:01:02]} 26. Rd1 {[%emt 0:00:42]} Rb5 {[%emt 0:07:48]} 27. Rc5 {[%emt 0:04:24]} Rb4 {[%emt 0:01:58]} 28. Rdc1 {[%emt 0:03:02]} Ke7 {[%emt 0:01:37]} 29. R1c4 {[%emt 0:00:53]} Rab8 {[%emt 0:01:06]} 30. Rxb4 {[%emt 0:00:49]} Rxb4 {[%emt 0:02:49]} 31. Kd3 {[%emt 0:00:56]} Rb8 {[%emt 0:00:49]} 32. Kc4 {[%emt 0:01:15]} Kd8 {[%emt 0:01:02]} 33. Rb5 {[%emt 0:01:07]} Bb6 {[%emt 0:00:17]} 34. f4 {[%emt 0:04:56]} Kc7 {[%emt 0:04:41]} 35. d5 {[%emt 0:00:48]} exd5+ {[%emt 0:00:26]} 36. Kxd5 {[%emt 0:00:08]} Ra8 {[%emt 0:05:18]} 37. Rxb6 {[%emt 0:01:04]} Kxb6 {[%emt 0:00:06]} 38. Kd6 {[%emt 0:00:03]} Ra7 {[%emt 0:00:12]} 39. Ke7 {[%emt 0:00:11]} a4 {[%emt 0:02:43]} 40. Kxf7 {[%emt 0:01:27]} Ra5 {[%emt 0:01:54]} 41. e6 {[%emt 0:30:57]} Rf5+ {[%emt 0:30:23]} 42. Kg7 {[%emt 0:00:27]} 1-0

[Event "24th Hoogeschool Zeeland 2022"]
[Site "Vlissingen"]
[Date "2022.08.07"]
[Round "3.14"]
[White "Van der Hagen, Loek"]
[Black "Royal, Shreyas"]
[Result "0-1"]
[ECO "E29"]
[WhiteElo "2135"]
[BlackElo "2353"]
[Annotator "RC"]
[PlyCount "70"]
[EventDate "2022.08.05"]
[EventType "swiss"]
[EventCountry "NED"]
[SourceTitle "playchess.com"]
[Source "ChessBase"]
[SourceQuality "1"]
[TimeControl "40/5400+30:1800+30"]

1. d4 {[%emt 0:00:10]} Nf6 {[%emt 0:00:08]} 2. c4 {[%emt 0:00:12]} e6 {[%emt 0:00:06]} 3. Nc3 {[%emt 0:00:06]} Bb4 {[%emt 0:00:04]} 4. a3 {[%emt 0:00:38]} Bxc3+ {[%emt 0:00:09]} 5. bxc3 {[%emt 0:00:05]} c5 {[%emt 0:00:40]} 6. e3 {[%emt 0:00:31]} Nc6 {[%emt 0:00:35]} 7. Bd3 {[%emt 0:00:20]} b6 {[%emt 0:00:49]} 8. Ne2 {[%emt 0:01:10]} O-O {[%emt 0:00:41]} 9. O-O {[%emt 0:02:39]} Ba6 {[%emt 0:02:20]} 10. e4 {[%emt 0:01:24]} Ne8 {[%emt 0:00:11]} 11. f4 {[%emt 0:01:27]} f5 {[%emt 0:00:34]} 12. exf5 {[%emt 0:00:26]} exf5 {[%emt 0:00:07]} 13. dxc5 {[%emt 0:00:25]} bxc5 {[%emt 0:00:07]} 14. Ng3 {[%emt 0:01:07]} g6 {[%emt 0:00:18]} 15. Be3 {[%emt 0:00:43]} d6 {[%emt 0:01:33]} 16. Qf3 {[%emt 0:01:31]} Qc7 {[%emt 0:06:05]} 17. Rab1 {[%emt 0:05:34]} Nf6 {[%emt 0:00:30]} 18. Rfe1 {[%emt 0:10:45]} Na5 {[%emt 0:03:49]} 19. Bc1 {[%emt 0:23:20]} Rae8 {[%emt 0:05:18]} 20. Rxe8 {[%emt 0:06:14]} Rxe8 {[%emt 0:00:10]} 21. h3 {[%emt 0:00:57]} Nxc4 {[%emt 0:18:03]} 22. Bxc4+ {[%emt 0:15:56]} Bxc4 {[%emt 0:00:08]} 23. Nxf5 {[%emt 0:01:28]} Bd5 {[%emt 0:10:51]} 24. Qg3 {[%emt 0:02:25]} Be4 {[%emt 0:00:34]} 25. Nh6+ {[%emt 0:03:29]} Kg7 {[%emt 0:00:05]} 26. Rb2 {[%emt 0:02:05]} Kxh6 {[%emt 0:00:12]} 27. f5+ {[%emt 0:00:15]} Kg7 {[%emt 0:00:05]} 28. Rf2 {[%emt 0:01:00]} Qe7 {[%emt 0:02:35]} 29. fxg6 {[%emt 0:00:37]} Bxg6 {[%emt 0:00:15]} 30. Qh4 {[%emt 0:00:50]} Qe1+ {[%emt 0:01:29]} 31. Kh2 {[%emt 0:00:05]} Ng4+ {[%emt 0:00:05]} 32. hxg4 {[%emt 0:00:58]} Qxc1 {[%emt 0:00:05]} 33. Qf6+ {[%emt 0:00:37]} Kg8 {[%emt 0:00:07]} 34. g5 {[%emt 0:01:18]} Qe3 {[%emt 0:00:17]} 35. g3 {[%emt 0:01:44]} Qe5 {[%emt 0:00:31]} 0-1

[Event "24th Hoogeschool Zeeland 2022"]
[Site "Vlissingen"]
[Date "2022.08.07"]
[Round "3.15"]
[White "Seul, Georg"]
[Black "Matsumura, Cocoro"]
[Result "0-1"]
[ECO "B23"]
[WhiteElo "2367"]
[BlackElo "2043"]
[Annotator "RC"]
[PlyCount "74"]
[EventDate "2022.08.05"]
[EventType "swiss"]
[EventCountry "NED"]
[SourceTitle "playchess.com"]
[Source "ChessBase"]
[SourceQuality "1"]
[TimeControl "40/5400+30:1800+30"]

1. e4 {[%emt 0:00:02]} c5 {[%emt 0:00:22]} 2. Nc3 {[%emt 0:00:06]} d6 {[%emt 0:00:06]} 3. Bb5+ {[%emt 0:00:16]} Bd7 {[%emt 0:01:16]} 4. Bxd7+ {[%emt 0:00:07]} Qxd7 {[%emt 0:00:05]} 5. d4 {[%emt 0:00:12]} cxd4 {[%emt 0:00:15]} 6. Qxd4 {[%emt 0:00:06]} Nc6 {[%emt 0:00:09]} 7. Qd3 {[%emt 0:00:09]} g6 {[%emt 0:00:19]} 8. Nf3 {[%emt 0:00:11]} Bg7 {[%emt 0:00:19]} 9. O-O {[%emt 0:00:17]} Nf6 {[%emt 0:01:01]} 10. Nd5 {[%emt 0:00:17]} O-O {[%emt 0:04:01]} 11. Bg5 {[%emt 0:00:05]} Nxd5 {[%emt 0:05:19]} 12. exd5 {[%emt 0:00:05]} Ne5 {[%emt 0:02:10]} 13. Nxe5 {[%emt 0:00:05]} dxe5 {[%emt 0:01:12]} 14. c4 {[%emt 0:07:02]} h6 {[%emt 0:05:11]} 15. Be3 {[%emt 0:01:11]} f5 {[%emt 0:02:49]} 16. f3 {[%emt 0:00:53]} Rfd8 {[%emt 0:04:37]} 17. Rfd1 {[%emt 0:03:19]} e6 {[%emt 0:05:30]} 18. d6 {[%emt 0:18:22]} b6 {[%emt 0:03:07]} 19. a4 {[%emt 0:41:25]} Rac8 {[%emt 0:04:36]} 20. a5 {[%emt 0:01:21]} Rc6 {[%emt 0:00:59]} 21. axb6 {[%emt 0:00:09]} axb6 {[%emt 0:00:05]} 22. Ra6 {[%emt 0:10:15]} Qb7 {[%emt 0:05:41]} 23. Qa3 {[%emt 0:04:16]} Bf8 {[%emt 0:14:06]} 24. Qa4 {[%emt 0:00:59]} Rcxd6 {[%emt 0:07:26]} 25. Rxd6 {[%emt 0:00:08]} Rxd6 {[%emt 0:01:01]} 26. h3 {[%emt 0:10:53]} f4 {[%emt 0:06:27]} 27. Bf2 {[%emt 0:00:15]} e4 {[%emt 0:01:14]} 28. Ra7 {[%emt 0:00:48]} Qc6 {[%emt 0:01:01]} 29. fxe4 {[%emt 0:00:40]} Qxa4 {[%emt 0:04:21]} 30. Rxa4 {[%emt 0:00:05]} Rd1+ {[%emt 0:00:05]} 31. Kh2 {[%emt 0:00:01]} Rd2 {[%emt 0:00:28]} 32. Bxb6 {[%emt 0:00:28]} f3 {[%emt 0:01:03]} 33. Ra8 {[%emt 0:01:25]} f2 {[%emt 0:01:13]} 34. Bxf2 {[%emt 0:01:37]} Rxf2 {[%emt 0:00:06]} 35. b4 {[%emt 0:00:00]} Rc2 {[%emt 0:01:02]} 36. Rc8 {[%emt 0:00:18]} Kf7 {[%emt 0:00:37]} 37. e5 {[%emt 0:00:20]} Bxb4 {[%emt 0:00:28]} 0-1

[Event "24th Hoogeschool Zeeland 2022"]
[Site "Vlissingen"]
[Date "2022.08.07"]
[Round "3.16"]
[White "Bakker, Jouke"]
[Black "Sorbe, Stephane"]
[Result "0-1"]
[ECO "B12"]
[WhiteElo "2057"]
[BlackElo "2352"]
[Annotator "RC"]
[PlyCount "160"]
[EventDate "2022.08.05"]
[EventType "swiss"]
[EventCountry "NED"]
[SourceTitle "playchess.com"]
[Source "ChessBase"]
[SourceQuality "1"]
[TimeControl "40/5400+30:1800+30"]

1. e4 {[%emt 0:00:04]} c6 {[%emt 0:01:13]} 2. d4 {[%emt 0:00:40]} d5 {[%emt 0:00:04]} 3. e5 {[%emt 0:00:30]} Bf5 {[%emt 0:00:06]} 4. Nd2 {[%emt 0:00:14]} e6 {[%emt 0:00:25]} 5. Nb3 {[%emt 0:00:15]} Nd7 {[%emt 0:00:27]} 6. Nf3 {[%emt 0:00:44]} h6 {[%emt 0:00:35]} 7. Be2 {[%emt 0:00:56]} Ne7 {[%emt 0:00:19]} 8. O-O {[%emt 0:01:22]} Nc8 {[%emt 0:00:09]} 9. a4 {[%emt 0:03:54]} a5 {[%emt 0:00:08]} 10. Bd2 {[%emt 0:01:21]} Be7 {[%emt 0:02:31]} 11. Bc3 {[%emt 0:22:14]} O-O {[%emt 0:06:10]} 12. Ne1 {[%emt 0:01:25]} c5 {[%emt 0:03:39]} 13. dxc5 {[%emt 0:01:31]} Nxc5 {[%emt 0:01:02]} 14. Nxc5 {[%emt 0:02:47]} Bxc5 {[%emt 0:00:07]} 15. Bd4 {[%emt 0:03:09]} Qb6 {[%emt 0:04:05]} 16. Bxc5 {[%emt 0:03:37]} Qxc5 {[%emt 0:00:06]} 17. Ra3 {[%emt 0:00:46]} Ne7 {[%emt 0:09:04]} 18. Bd3 {[%emt 0:08:19]} Rfc8 {[%emt 0:03:56]} 19. c3 {[%emt 0:02:56]} Bxd3 {[%emt 0:13:47]} 20. Nxd3 {[%emt 0:00:47]} Qc4 {[%emt 0:03:16]} 21. Ne1 {[%emt 0:12:21]} Rc7 {[%emt 0:06:51]} 22. Nf3 {[%emt 0:00:30]} Nc6 {[%emt 0:03:14]} 23. Re1 {[%emt 0:01:29]} Rd8 {[%emt 0:02:57]} 24. Qb3 {[%emt 0:06:32]} Qf4 {[%emt 0:06:03]} 25. Raa1 {[%emt 0:06:54]} d4 {[%emt 0:11:04]} 26. Qb6 {[%emt 0:09:06]} Rdd7 {[%emt 0:00:09]} 27. cxd4 {[%emt 0:01:15]} Nxd4 {[%emt 0:01:28]} 28. Nxd4 {[%emt 0:00:21]} Qxd4 {[%emt 0:00:07]} 29. Qb3 {[%emt 0:02:10]} Qc4 {[%emt 0:02:46]} 30. Ra3 {[%emt 0:02:47]} Rd2 {[%emt 0:02:57]} 31. Qb6 {[%emt 0:01:19]} Qc5 {[%emt 0:10:18]} 32. Qxc5 {[%emt 0:00:13]} Rxc5 {[%emt 0:00:04]} 33. Rc3 {[%emt 0:02:50]} Rxe5 {[%emt 0:00:35]} 34. Kf1 {[%emt 0:01:11]} Rxe1+ {[%emt 0:00:38]} 35. Kxe1 {[%emt 0:00:07]} Rxb2 {[%emt 0:00:06]} 36. Rc8+ {[%emt 0:00:53]} Kh7 {[%emt 0:00:04]} 37. Rc4 {[%emt 0:00:04]} Kg6 {[%emt 0:02:24]} 38. g3 {[%emt 0:00:17]} Kf6 {[%emt 0:00:17]} 39. h4 {[%emt 0:00:16]} Rb4 {[%emt 0:01:56]} 40. Rc7 {[%emt 0:00:49]} Rxa4 {[%emt 0:01:05]} 41. Rxb7 {[%emt 0:30:07]} Ra2 {[%emt 0:30:27]} 42. Kf1 {[%emt 0:00:14]} h5 {[%emt 0:00:40]} 43. Kg2 {[%emt 0:00:08]} g6 {[%emt 0:00:30]} 44. Kg1 {[%emt 0:00:00]} Rc2 {[%emt 0:00:00]} 45. Rb5 {[%emt 0:00:00]} a4 {[%emt 0:00:00]} 46. Ra5 {[%emt 0:00:00]} Rc4 {[%emt 0:00:00]} 47. Ra7 {[%emt 0:00:00]} e5 {[%emt 0:00:00]} 48. Kf1 {[%emt 0:00:00]} Re4 {[%emt 0:00:00]} 49. Ra6+ {[%emt 0:00:00]} Kf5 {[%emt 0:00:00]} 50. Ra7 {[%emt 0:00:00]} f6 {[%emt 0:00:00]} 51. Ra6 {[%emt 0:00:00]} Rb4 {[%emt 0:00:00]} 52. Kg2 {[%emt 0:00:00]} e4 {[%emt 0:00:00]} 53. Kf1 {[%emt 0:00:00]} Ke5 {[%emt 0:00:00]} 54. Ke2 {[%emt 0:00:00]} Rb2+ {[%emt 0:00:00]} 55. Kf1 {[%emt 0:00:00]} Ra2 {[%emt 0:03:48]} 56. Ra5+ {[%emt 0:00:00]} Kd4 {[%emt 0:00:30]} 57. Ra6 {[%emt 0:00:00]} f5 {[%emt 0:01:23]} 58. Rd6+ {[%emt 0:00:00]} Kc5 {[%emt 0:01:19]} 59. Rxg6 {[%emt 0:00:00]} Rd2 {[%emt 0:00:44]} 60. Ra6 {[%emt 0:00:00]} Kb5 {[%emt 0:00:21]} 61. Ra8 {[%emt 0:00:00]} Rd6 {[%emt 0:00:48]} 62. Ke2 {[%emt 0:00:00]} Kb4 {[%emt 0:00:55]} 63. Rb8+ {[%emt 0:00:00]} Kc3 {[%emt 0:00:16]} 64. Rc8+ {[%emt 0:00:00]} Kb2 {[%emt 0:00:05]} 65. Rb8+ {[%emt 0:00:00]} Ka2 {[%emt 0:00:05]} 66. f3 {[%emt 0:01:43]} exf3+ {[%emt 0:02:25]} 67. Kxf3 {[%emt 0:00:06]} Rd3+ {[%emt 0:00:52]} 68. Kf4 {[%emt 0:00:27]} a3 {[%emt 0:00:16]} 69. Re8 {[%emt 0:01:42]} Kb2 {[%emt 0:00:38]} 70. Re2+ {[%emt 0:00:16]} Kb3 {[%emt 0:00:21]} 71. Kxf5 {[%emt 0:00:59]} Rxg3 {[%emt 0:00:26]} 72. Re8 {[%emt 0:00:48]} Rg4 {[%emt 0:00:43]} 73. Re3+ {[%emt 0:01:40]} Kb4 {[%emt 0:00:04]} 74. Rh3 {[%emt 0:00:07]} Rc4 {[%emt 0:00:35]} 75. Kg5 {[%emt 0:01:02]} Rc5+ {[%emt 0:00:16]} 76. Kg6 {[%emt 0:00:06]} Ra5 {[%emt 0:02:19]} 77. Rh2 {[%emt 0:00:28]} Kc4 {[%emt 0:00:27]} 78. Ra2 {[%emt 0:02:47]} Kd4 {[%emt 0:00:36]} 79. Rxa3 {[%emt 0:01:45]} Rxa3 {[%emt 0:00:05]} 80. Kxh5 {[%emt 0:00:05]} Rg3 {[%emt 0:01:03]} 0-1

[Event "24th Hoogeschool Zeeland 2022"]
[Site "Vlissingen"]
[Date "2022.08.07"]
[Round "3.17"]
[White "Klepke, Ricardo"]
[Black "Saketh, Pedagandham"]
[Result "1-0"]
[ECO "E05"]
[WhiteElo "2293"]
[BlackElo "1928"]
[Annotator "RC"]
[PlyCount "41"]
[EventDate "2022.08.05"]
[EventType "swiss"]
[EventCountry "NED"]
[SourceTitle "playchess.com"]
[Source "ChessBase"]
[SourceQuality "1"]
[TimeControl "40/5400+30:1800+30"]

1. d4 {[%emt 0:04:46]} Nf6 {[%emt 0:01:16]} 2. c4 {[%emt 0:00:23]} e6 {[%emt 0:00:02]} 3. g3 {[%emt 0:00:20]} d5 {[%emt 0:00:07]} 4. Nf3 {[%emt 0:00:14]} Be7 {[%emt 0:00:07]} 5. Bg2 {[%emt 1:27:17]} O-O {[%emt 0:00:42]} 6. O-O {[%emt 0:00:00]} dxc4 {[%emt 0:02:35]} 7. Ne5 {[%emt 0:00:00]} Nbd7 {[%emt 0:09:32]} 8. Nxc4 {[%emt 0:00:00]} c5 {[%emt 0:00:34]} 9. Nc3 {[%emt 0:00:00]} cxd4 {[%emt 0:01:08]} 10. Qxd4 {[%emt 0:00:00]} Nc5 {[%emt 0:01:29]} 11. Be3 {[%emt 0:00:00]} Qxd4 {[%emt 0:02:20]} 12. Bxd4 {[%emt 0:00:00]} Bd7 {[%emt 0:09:54]} 13. Bxc5 {[%emt 0:00:00]} Bxc5 {[%emt 0:00:03]} 14. Bxb7 {[%emt 0:00:00]} Rab8 {[%emt 0:00:09]} 15. Bf3 {[%emt 0:00:00]} Rfc8 {[%emt 0:00:05]} 16. b3 {[%emt 0:00:00]} Bd4 {[%emt 0:03:04]} 17. Rac1 {[%emt 0:00:00]} e5 {[%emt 0:01:02]} 18. Nd5 {[%emt 0:00:00]} Nxd5 {[%emt 0:01:42]} 19. Bxd5 {[%emt 0:00:00]} Rc5 {[%emt 0:00:03]} 20. Bf3 {[%emt 0:00:00]} Rc7 {[%emt 0:04:57]} 21. e3 {[%emt 0:00:00]} 1-0